[Event "Rapid della Domenica"]
[Site "Chess.com"]
[Date "2020.04.19"]
[Round "6"]
[White "caramante"]
[Black "sergiodone"]
[Result "1-0"]
[WhiteElo "1588"]
[BlackElo "1359"]
[TimeControl "720+3"]
[EndTime "8:27:34 PDT"]
[Termination "caramante ha vinto per abbandono"]

1. Nf3 {[%clk 0:12:02.9]} 1... c5 {[%clk 0:11:57.8]} 2. e4 {[%clk 0:12:01.2]}
2... d6 {[%clk 0:11:59.2]} 3. g3 {[%clk 0:11:58.8]} 3... e6 {[%clk 0:12:00.5]}
4. Bg2 {[%clk 0:12:00.8]} 4... Be7 {[%clk 0:12:02]} 5. d3 {[%clk 0:12:02.9]}
5... Nc6 {[%clk 0:12:03.5]} 6. Be3 {[%clk 0:12:04.6]} 6... a6 {[%clk 0:11:59.6]}
7. h3 {[%clk 0:12:05.5]} 7... Bd7 {[%clk 0:11:47]} 8. c3 {[%clk 0:12:06.9]} 8...
b5 {[%clk 0:11:41.2]} 9. O-O {[%clk 0:12:08.3]} 9... h5 {[%clk 0:11:41.9]} 10.
h4 {[%clk 0:12:07.7]} 10... Nf6 {[%clk 0:11:39.4]} 11. Nbd2 {[%clk 0:12:06.1]}
11... Ng4 {[%clk 0:11:39.5]} 12. Qe2 {[%clk 0:12:07]} 12... Qc7 {[%clk
0:11:35.8]} 13. Nh2 {[%clk 0:12:02.9]} 13... Nce5 {[%clk 0:11:33]} 14. f4 {[%clk
0:11:58.4]} 14... Nxe3 {[%clk 0:11:33.3]} 15. Qxe3 {[%clk 0:11:57.8]} 15... Ng4
{[%clk 0:11:33]} 16. Nxg4 {[%clk 0:11:58]} 16... hxg4 {[%clk 0:11:33.6]} 17. Qe2
{[%clk 0:11:52.4]} 17... Bc6 {[%clk 0:11:34.9]} 18. Qxg4 {[%clk 0:11:50.6]}
18... g6 {[%clk 0:11:32.4]} 19. Rae1 {[%clk 0:11:50]} 19... O-O-O {[%clk
0:11:31.9]} 20. d4 {[%clk 0:11:46.2]} 20... c4 {[%clk 0:11:26.7]} 21. Qf3 {[%clk
0:11:17]} 21... Bb7 {[%clk 0:11:26.8]} 22. Qe3 {[%clk 0:11:15.6]} 22... Kb8
{[%clk 0:11:13.6]} 23. f5 {[%clk 0:10:53.6]} 23... gxf5 {[%clk 0:11:13.4]} 24.
exf5 {[%clk 0:10:54.3]} 24... Bxg2 {[%clk 0:11:10.3]} 25. Kxg2 {[%clk
0:10:55.4]} 25... d5 {[%clk 0:10:50.3]} 26. fxe6 {[%clk 0:10:34.5]} 26... Rhg8
{[%clk 0:10:49.5]} 27. Rf4 {[%clk 0:10:16.7]} 27... f6 {[%clk 0:10:43.8]} 28.
Nf3 {[%clk 0:10:05.8]} 28... Rg6 {[%clk 0:10:34.2]} 29. h5 {[%clk 0:09:57.2]}
29... Rg7 {[%clk 0:10:23.7]} 30. Nh4 {[%clk 0:09:58.6]} 30... Rg5 {[%clk
0:10:11.2]} 31. Rf5 {[%clk 0:09:35.2]} 31... Rdg8 {[%clk 0:10:04.2]} 32. Rxg5
{[%clk 0:09:34.4]} 32... Rxg5 {[%clk 0:09:58.9]} 33. Ng6 {[%clk 0:09:15]} 33...
Rxh5 {[%clk 0:09:55.5]} 34. Nxe7 {[%clk 0:09:15.6]} 34... Qxe7 {[%clk
0:09:56.7]} 35. Qf4+ {[%clk 0:09:12]} 35... Kb7 {[%clk 0:09:44.9]} 36. g4 {[%clk
0:09:08.1]} 36... Rg5 {[%clk 0:09:42.3]} 37. Kf3 {[%clk 0:08:52.6]} 37... Kc6
{[%clk 0:09:42.3]} 38. Qb8 {[%clk 0:08:36.8]} 38... Rg7 {[%clk 0:09:23]} 39.
Qa8+ {[%clk 0:08:25.8]} 39... Qb7 {[%clk 0:08:52.5]} 40. Qxb7+ {[%clk
0:08:14.3]} 40... Rxb7 {[%clk 0:08:49.2]} 41. e7 {[%clk 0:08:15.8]} 41... Rb8
{[%clk 0:08:15.2]} 42. e8=Q+ {[%clk 0:08:16.2]} 42... Rxe8 {[%clk 0:08:16.8]}
43. Rxe8 {[%clk 0:08:16.9]} 43... a5 {[%clk 0:08:17.6]} 44. Re6+ {[%clk
0:08:17.4]} 44... Kc7 {[%clk 0:08:16.6]} 45. Rxf6 {[%clk 0:08:18.2]} 45... b4
{[%clk 0:08:18.4]} 46. g5 {[%clk 0:08:16.3]} 46... a4 {[%clk 0:07:32.9]} 47. g6
{[%clk 0:08:09.2]} 47... a3 {[%clk 0:07:30.9]} 48. bxa3 {[%clk 0:08:05]} 48...
bxc3 {[%clk 0:07:32.4]} 49. Ke2 {[%clk 0:08:06.7]} 1-0

[Event "Rapid della Domenica"]
[Site "Chess.com"]
[Date "2020.04.19"]
[Round "6"]
[White "sirmale49"]
[Black "BAKR1980"]
[Result "0-1"]
[WhiteElo "1391"]
[BlackElo "1543"]
[TimeControl "720+3"]
[EndTime "8:33:54 PDT"]
[Termination "BAKR1980 ha vinto per abbandono"]

1. f4 {[%clk 0:11:52.6]} 1... Nc6 {[%clk 0:11:57.2]} 2. Nf3 {[%clk 0:11:54.2]}
2... d6 {[%clk 0:11:53.1]} 3. g3 {[%clk 0:11:55.6]} 3... f6 {[%clk 0:11:54.5]}
4. e3 {[%clk 0:11:57]} 4... e5 {[%clk 0:11:55.9]} 5. Bg2 {[%clk 0:11:57.3]} 5...
Bg4 {[%clk 0:11:50.8]} 6. h3 {[%clk 0:11:47.4]} 6... Bh5 {[%clk 0:11:51.1]} 7.
g4 {[%clk 0:11:48.7]} 7... Bf7 {[%clk 0:11:51.4]} 8. f5 {[%clk 0:11:49.7]} 8...
Qd7 {[%clk 0:11:52.4]} 9. e4 {[%clk 0:11:50.9]} 9... O-O-O {[%clk 0:11:53.6]}
10. O-O {[%clk 0:11:50.4]} 10... g6 {[%clk 0:11:54.6]} 11. Nc3 {[%clk 0:11:37]}
11... h5 {[%clk 0:11:48.3]} 12. Nh4 {[%clk 0:11:22.6]} 12... hxg4 {[%clk
0:11:45.7]} 13. Qxg4 {[%clk 0:11:12.8]} 13... Nh6 {[%clk 0:11:31.6]} 14. Qg3
{[%clk 0:10:58.6]} 14... gxf5 {[%clk 0:11:27.5]} 15. Nxf5 {[%clk 0:10:56.3]}
15... Rg8 {[%clk 0:11:12.3]} 16. Qe3 {[%clk 0:10:30.5]} 16... Nxf5 {[%clk
0:10:58.5]} 17. exf5 {[%clk 0:10:27.6]} 17... d5 {[%clk 0:10:47.6]} 18. d4
{[%clk 0:09:56.7]} 18... Nxd4 {[%clk 0:10:45.6]} 19. Rf2 {[%clk 0:09:38.3]}
19... Bc5 {[%clk 0:10:32.2]} 20. Kf1 {[%clk 0:09:19.6]} 20... Bb6 {[%clk
0:10:18.5]} 21. Qd3 {[%clk 0:08:56.8]} 21... e4 {[%clk 0:09:55.4]} 22. Qd2
{[%clk 0:07:37]} 22... Nxf5 {[%clk 0:09:42.9]} 23. Rxf5 {[%clk 0:06:53.2]} 23...
Qxf5+ {[%clk 0:09:42.3]} 24. Qf4 {[%clk 0:06:51.2]} 24... Qg6 {[%clk 0:09:14.4]}
25. Qg4+ {[%clk 0:06:33.5]} 25... Qxg4 {[%clk 0:09:15.6]} 26. hxg4 {[%clk
0:06:34.5]} 26... c6 {[%clk 0:08:57.5]} 27. Ke2 {[%clk 0:05:56.6]} 27... f5
{[%clk 0:08:48.1]} 28. g5 {[%clk 0:05:51.9]} 28... Bc7 {[%clk 0:08:43.4]} 29.
Bd2 {[%clk 0:05:05.9]} 29... f4 {[%clk 0:08:42.3]} 30. Bh3+ {[%clk 0:05:01.6]}
30... Kb8 {[%clk 0:08:42.8]} 31. Rg1 {[%clk 0:04:45]} 31... Bh5+ {[%clk
0:08:40.6]} 32. Kf1 {[%clk 0:04:09.1]} 32... e3 {[%clk 0:08:38.2]} 33. Be1
{[%clk 0:03:59.2]} 33... f3 {[%clk 0:08:30.1]} 34. Bg3 {[%clk 0:03:53.4]} 34...
f2 {[%clk 0:07:47.5]} 35. Bxc7+ {[%clk 0:03:41.1]} 35... Kxc7 {[%clk 0:07:48.9]}
36. Rg3 {[%clk 0:03:31.6]} 36... d4 {[%clk 0:07:48.8]} 37. Ne4 {[%clk
0:03:08.7]} 37... e2+ {[%clk 0:07:48.8]} 38. Kxf2 {[%clk 0:02:53.9]} 38... Rdf8+
{[%clk 0:07:50.2]} 39. Nf6 {[%clk 0:02:41.5]} 39... Rxf6+ {[%clk 0:07:51.4]} 40.
Ke1 {[%clk 0:02:05.5]} 40... Rfg6 {[%clk 0:07:48.7]} 41. Bg4 {[%clk 0:01:23.2]}
41... Rxg5 {[%clk 0:07:47.7]} 0-1

[Event "Rapid della Domenica"]
[Site "Chess.com"]
[Date "2020.04.19"]
[Round "6"]
[White "ferrariand"]
[Black "moha1812med"]
[Result "1-0"]
[WhiteElo "1546"]
[BlackElo "1042"]
[TimeControl "720+3"]
[EndTime "8:34:14 PDT"]
[Termination "ferrariand ha vinto per tempo"]

1. e4 {[%clk 0:12:02.9]} 1... e5 {[%clk 0:11:55.3]} 2. Nf3 {[%clk 0:11:58.5]}
2... Nf6 {[%clk 0:11:54]} 3. Nxe5 {[%clk 0:11:57.4]} 3... d6 {[%clk 0:11:55]} 4.
Nf3 {[%clk 0:11:57.5]} 4... Nxe4 {[%clk 0:11:56.1]} 5. Qe2 {[%clk 0:11:58.1]}
5... d5 {[%clk 0:11:48.5]} 6. d3 {[%clk 0:11:59.2]} 6... Bb4+ {[%clk 0:11:35.9]}
7. c3 {[%clk 0:11:57.3]} 7... O-O {[%clk 0:11:21.8]} 8. dxe4 {[%clk 0:11:52.9]}
8... Bc5 {[%clk 0:11:17.4]} 9. Qc2 {[%clk 0:11:31.3]} 9... Re8 {[%clk
0:11:03.9]} 10. Be2 {[%clk 0:11:28.8]} 10... dxe4 {[%clk 0:11:01.9]} 11. Nd4
{[%clk 0:11:27.9]} 11... Bxd4 {[%clk 0:10:27.5]} 12. cxd4 {[%clk 0:11:28.6]}
12... Bf5 {[%clk 0:10:26]} 13. Be3 {[%clk 0:11:27.7]} 13... Nc6 {[%clk 0:10:12]}
14. Qc5 {[%clk 0:11:11.9]} 14... Bg6 {[%clk 0:09:17.3]} 15. O-O {[%clk
0:11:12.5]} 15... Re7 {[%clk 0:07:53.6]} 16. Bb5 {[%clk 0:10:45.9]} 16... Re6
{[%clk 0:06:37.7]} 17. Nc3 {[%clk 0:10:21.6]} 17... a6 {[%clk 0:06:35.9]} 18.
Bc4 {[%clk 0:10:19.6]} 18... Rd6 {[%clk 0:06:23.2]} 19. Qg5 {[%clk 0:09:24.4]}
19... Qxg5 {[%clk 0:05:47.4]} 20. Bxg5 {[%clk 0:09:23.4]} 20... b5 {[%clk
0:05:47.2]} 21. Bd5 {[%clk 0:09:18.1]} 21... b4 {[%clk 0:05:32.4]} 22. Bxc6
{[%clk 0:09:18]} 22... Rxc6 {[%clk 0:05:33.6]} 23. Nd5 {[%clk 0:09:09.3]} 23...
Re8 {[%clk 0:04:53.2]} 24. Ne7+ {[%clk 0:09:07.2]} 24... Rxe7 {[%clk 0:04:35.9]}
25. Bxe7 {[%clk 0:09:08.1]} 25... f6 {[%clk 0:04:24.1]} 26. Bxb4 {[%clk
0:09:06.9]} 26... Rb6 {[%clk 0:04:13.7]} 27. Ba3 {[%clk 0:09:07.9]} 27... e3
{[%clk 0:03:57.2]} 28. fxe3 {[%clk 0:09:06.2]} 28... Bd3 {[%clk 0:03:54.5]} 29.
Rfe1 {[%clk 0:09:02.5]} 29... g5 {[%clk 0:03:38.7]} 30. Rad1 {[%clk 0:08:55.8]}
30... Bc2 {[%clk 0:03:32.9]} 31. Rd2 {[%clk 0:08:55]} 31... Be4 {[%clk
0:03:13.3]} 32. d5 {[%clk 0:08:55.5]} 32... Rb8 {[%clk 0:02:25.2]} 33. d6 {[%clk
0:08:54.2]} 33... Rd8 {[%clk 0:01:46.7]} 34. Rd4 {[%clk 0:08:34.8]} 34... cxd6
{[%clk 0:01:28.8]} 35. Rxe4 {[%clk 0:08:32.9]} 35... d5 {[%clk 0:01:28.4]} 36.
Rd4 {[%clk 0:08:30.9]} 36... f5 {[%clk 0:01:01.5]} 37. Red1 {[%clk 0:08:31.4]}
37... Re8 {[%clk 0:00:59.7]} 38. Rxd5 {[%clk 0:08:27.3]} 38... Rxe3 {[%clk
0:00:57.5]} 39. Rd8+ {[%clk 0:08:26.7]} 39... Kg7 {[%clk 0:00:58.4]} 40. Bf8+
{[%clk 0:08:21.9]} 40... Kg6 {[%clk 0:00:51]} 41. R1d6+ {[%clk 0:08:21.9]} 41...
Kh5 {[%clk 0:00:51.9]} 42. Kf2 {[%clk 0:08:16.7]} 42... f4 {[%clk 0:00:35]} 43.
R8d7 {[%clk 0:08:13.5]} 1-0

[Event "Rapid della Domenica"]
[Site "Chess.com"]
[Date "2020.04.19"]
[Round "6"]
[White "FrancescoZasa"]
[Black "MartinoMontepietra"]
[Result "0-1"]
[WhiteElo "587"]
[BlackElo "739"]
[TimeControl "720+3"]
[EndTime "8:43:42 PDT"]
[Termination "MartinoMontepietra ha vinto per scaccomatto"]

1. d4 {[%clk 0:12:02.9]} 1... g6 {[%clk 0:11:32.4]} 2. Nf3 {[%clk 0:12:03.5]}
2... Bg7 {[%clk 0:11:30.6]} 3. Nc3 {[%clk 0:11:57.2]} 3... Nf6 {[%clk
0:11:27.2]} 4. e4 {[%clk 0:11:55.5]} 4... O-O {[%clk 0:11:21.3]} 5. Bc4 {[%clk
0:11:53.6]} 5... a6 {[%clk 0:11:09.5]} 6. Be3 {[%clk 0:11:50.2]} 6... b5 {[%clk
0:11:02]} 7. Bd3 {[%clk 0:11:45.8]} 7... e6 {[%clk 0:10:55.2]} 8. b4 {[%clk
0:11:45.6]} 8... d5 {[%clk 0:10:54]} 9. exd5 {[%clk 0:11:44.8]} 9... exd5 {[%clk
0:10:53.9]} 10. a3 {[%clk 0:11:43.1]} 10... Re8 {[%clk 0:09:59.8]} 11. O-O
{[%clk 0:11:36.7]} 11... Nfd7 {[%clk 0:09:42]} 12. h3 {[%clk 0:11:24.3]} 12...
Bf6 {[%clk 0:09:35]} 13. g4 {[%clk 0:11:20.4]} 13... h5 {[%clk 0:09:26.3]} 14.
Bh6 {[%clk 0:10:54.7]} 14... Kh7 {[%clk 0:09:19.4]} 15. Qd2 {[%clk 0:10:52.7]}
15... hxg4 {[%clk 0:09:07.4]} 16. hxg4 {[%clk 0:10:48]} 16... Rh8 {[%clk
0:08:54.8]} 17. Bg5 {[%clk 0:10:30.6]} 17... Qg8 {[%clk 0:08:47]} 18. Bxf6
{[%clk 0:10:28.4]} 18... Nxf6 {[%clk 0:08:41.1]} 19. Kg2 {[%clk 0:10:06.9]}
19... Bxg4 {[%clk 0:08:27.6]} 20. Rh1+ {[%clk 0:10:03.6]} 20... Kg7 {[%clk
0:08:19.6]} 21. Rxh8 {[%clk 0:10:02.8]} 21... Qxh8 {[%clk 0:08:19]} 22. Qf4
{[%clk 0:09:38.2]} 22... Bh3+ {[%clk 0:08:06.4]} 23. Kg1 {[%clk 0:09:27]} 23...
Nbd7 {[%clk 0:07:51.7]} 24. Qxc7 {[%clk 0:09:13]} 24... Rc8 {[%clk 0:07:37.1]}
25. Qf4 {[%clk 0:08:45.5]} 25... Rg8 {[%clk 0:07:31.5]} 26. Qh4 {[%clk 0:08:33]}
26... Nh5 {[%clk 0:06:59.4]} 27. Qxh3 {[%clk 0:08:26.8]} 27... Qh7 {[%clk
0:06:58.4]} 28. Kf1 {[%clk 0:08:10.1]} 28... Rh8 {[%clk 0:06:55.8]} 29. Ke2
{[%clk 0:08:08.9]} 29... Ndf6 {[%clk 0:06:43.3]} 30. Kd2 {[%clk 0:08:05]} 30...
a5 {[%clk 0:06:02.8]} 31. Rg1 {[%clk 0:08:01.8]} 31... axb4 {[%clk 0:05:56.6]}
32. Rxg6+ {[%clk 0:08:00.5]} 32... fxg6 {[%clk 0:05:54.1]} 33. Nxb5 {[%clk
0:07:42.8]} 33... Rb8 {[%clk 0:05:47.1]} 34. Qd7+ {[%clk 0:07:24.4]} 34... Nxd7
{[%clk 0:05:39.8]} 35. axb4 {[%clk 0:07:00.7]} 35... Qh6+ {[%clk 0:05:18.9]} 36.
Kc3 {[%clk 0:06:42.1]} 36... Rc8+ {[%clk 0:05:16.9]} 37. Kb3 {[%clk 0:06:34.3]}
37... Ndf6 {[%clk 0:05:12.9]} 38. Nd6 {[%clk 0:06:32]} 38... Rh8 {[%clk
0:05:00.5]} 39. Ne5 {[%clk 0:06:14.4]} 39... Qd2 {[%clk 0:04:23]} 40. Nxg6
{[%clk 0:06:08.9]} 40... Rd8 {[%clk 0:03:49.2]} 41. Nc4 {[%clk 0:05:35.9]} 41...
Qxf2 {[%clk 0:03:44.3]} 42. Nge5 {[%clk 0:04:43.3]} 42... dxc4+ {[%clk
0:03:39.1]} 43. Kxc4 {[%clk 0:04:42.9]} 43... Rc8+ {[%clk 0:03:34.2]} 44. Kb3
{[%clk 0:04:37.7]} 44... Nd5 {[%clk 0:03:05.5]} 45. b5 {[%clk 0:04:29.7]} 45...
Rb8 {[%clk 0:03:01]} 46. Nd7 {[%clk 0:04:30]} 46... Rb7 {[%clk 0:02:54.7]} 47.
Ne5 {[%clk 0:04:25.3]} 47... Nhf4 {[%clk 0:02:44]} 48. c3 {[%clk 0:03:45.6]}
48... Nxd3 {[%clk 0:02:37]} 49. Nxd3 {[%clk 0:03:44.9]} 49... Qe3 {[%clk
0:02:31.3]} 50. Kc4 {[%clk 0:03:41.9]} 50... Nxc3 {[%clk 0:02:21.7]} 51. Nc5
{[%clk 0:03:29.2]} 51... Rc7 {[%clk 0:02:11.3]} 52. b6 {[%clk 0:03:26]} 52...
Rc8 {[%clk 0:01:52.2]} 53. b7 {[%clk 0:03:23.8]} 53... Rb8 {[%clk 0:01:51.9]}
54. d5 {[%clk 0:02:44]} 54... Qf4+ {[%clk 0:01:47.7]} 55. Kxc3 {[%clk
0:02:40.6]} 55... Qf3+ {[%clk 0:01:42.9]} 56. Kd4 {[%clk 0:02:40.3]} 56... Rf8
{[%clk 0:01:31.3]} 57. d6 {[%clk 0:02:31.6]} 57... Qf4+ {[%clk 0:01:29.6]} 58.
Kc3 {[%clk 0:02:29.1]} 58... Qxd6 {[%clk 0:01:28]} 59. Kc4 {[%clk 0:02:27.8]}
59... Qf4+ {[%clk 0:01:23.5]} 60. Kb5 {[%clk 0:02:25.8]} 60... Qc7 {[%clk
0:01:15.6]} 61. Kc4 {[%clk 0:02:25.1]} 61... Rf4+ {[%clk 0:01:11.8]} 62. Kb5
{[%clk 0:02:13.9]} 62... Rf1 {[%clk 0:00:59.3]} 63. Kc4 {[%clk 0:02:12.2]} 63...
Rc1+ {[%clk 0:01:00]} 64. Kd5 {[%clk 0:02:12.4]} 64... Rxc5+ {[%clk 0:00:58.4]}
65. Ke4 {[%clk 0:02:04.1]} 65... Qxb7+ {[%clk 0:00:58.6]} 66. Ke3 {[%clk
0:02:04.3]} 66... Re5+ {[%clk 0:00:59.4]} 67. Kf4 {[%clk 0:02:05.3]} 67... Re6
{[%clk 0:00:58.7]} 68. Kf5 {[%clk 0:02:01.8]} 68... Re1 {[%clk 0:00:55.9]} 69.
Kf4 {[%clk 0:02:02.9]} 69... Qf7+ {[%clk 0:00:53.6]} 70. Kg3 {[%clk 0:01:59.6]}
70... Rg1+ {[%clk 0:00:52.2]} 71. Kh2 {[%clk 0:01:58.2]} 71... Rg6 {[%clk
0:00:50]} 72. Kh3 {[%clk 0:01:58.8]} 72... Qf1+ {[%clk 0:00:47.1]} 73. Kh4
{[%clk 0:02:00.3]} 73... Qh1# {[%clk 0:00:47.3]} 0-1

[Event "Rapid della Domenica"]
[Site "Chess.com"]
[Date "2020.04.19"]
[Round "6"]
[White "OMatteoWuO"]
[Black "Mrtre7"]
[Result "0-1"]
[WhiteElo "1198"]
[BlackElo "1379"]
[TimeControl "720+3"]
[EndTime "8:46:05 PDT"]
[Termination "Mrtre7 ha vinto per abbandono"]

1. d4 {[%clk 0:12:01.8]} 1... d5 {[%clk 0:12:00.4]} 2. c4 {[%clk 0:12:01.9]}
2... c6 {[%clk 0:12:00.8]} 3. Nc3 {[%clk 0:12:01.9]} 3... Nf6 {[%clk 0:11:55.5]}
4. Nf3 {[%clk 0:11:34.2]} 4... e6 {[%clk 0:11:50]} 5. e3 {[%clk 0:11:28.1]} 5...
dxc4 {[%clk 0:11:36.1]} 6. Bxc4 {[%clk 0:11:20.5]} 6... Nbd7 {[%clk 0:11:37.9]}
7. O-O {[%clk 0:11:07.6]} 7... b5 {[%clk 0:11:29.6]} 8. Bd3 {[%clk 0:10:41.1]}
8... a6 {[%clk 0:11:23.4]} 9. a3 {[%clk 0:10:24.8]} 9... c5 {[%clk 0:11:22.3]}
10. dxc5 {[%clk 0:10:19.6]} 10... Bxc5 {[%clk 0:11:22.9]} 11. b4 {[%clk
0:10:20.5]} 11... Bb6 {[%clk 0:11:22.4]} 12. Bb2 {[%clk 0:10:00.8]} 12... Bb7
{[%clk 0:11:23.2]} 13. Rc1 {[%clk 0:09:53.4]} 13... Rc8 {[%clk 0:11:19.9]} 14.
Qe2 {[%clk 0:09:03.3]} 14... O-O {[%clk 0:11:20.8]} 15. Rfd1 {[%clk 0:06:42.3]}
15... Qe7 {[%clk 0:11:20.1]} 16. h3 {[%clk 0:06:26.2]} 16... e5 {[%clk
0:11:09.2]} 17. Ng5 {[%clk 0:05:52.1]} 17... h6 {[%clk 0:10:58]} 18. Nge4 {[%clk
0:05:44.9]} 18... Nxe4 {[%clk 0:10:56.9]} 19. Bxe4 {[%clk 0:05:38.3]} 19... Rxc3
{[%clk 0:08:18.3]} 20. Bxb7 {[%clk 0:05:13.3]} 20... Rxc1 {[%clk 0:08:18.8]} 21.
Rxc1 {[%clk 0:05:09.6]} 21... Nf6 {[%clk 0:08:16]} 22. Bxa6 {[%clk 0:04:54.9]}
22... Qd7 {[%clk 0:07:49.5]} 23. Bxb5 {[%clk 0:04:48.1]} 23... Qf5 {[%clk
0:07:35.8]} 24. Bd3 {[%clk 0:04:12.6]} 24... e4 {[%clk 0:07:36.2]} 25. Bc4
{[%clk 0:03:48.1]} 25... Rd8 {[%clk 0:07:11.1]} 26. Bxf6 {[%clk 0:03:47.6]}
26... Qxf6 {[%clk 0:07:07.9]} 27. a4 {[%clk 0:03:38.3]} 27... Rb8 {[%clk
0:05:41.1]} 28. b5 {[%clk 0:03:25.7]} 28... Qe5 {[%clk 0:05:31.7]} 29. Rb1
{[%clk 0:02:26.5]} 29... Bc7 {[%clk 0:05:31.3]} 30. g3 {[%clk 0:02:14.1]} 30...
Rb6 {[%clk 0:04:59.4]} 31. a5 {[%clk 0:02:00.4]} 31... Rg6 {[%clk 0:04:51.7]}
32. Kf1 {[%clk 0:01:36.6]} 32... Qf5 {[%clk 0:04:36.9]} 33. Ke1 {[%clk
0:01:17.6]} 33... Qxh3 {[%clk 0:04:30.3]} 34. b6 {[%clk 0:01:15.2]} 34... Bb8
{[%clk 0:04:18.4]} 35. b7 {[%clk 0:01:09.4]} 35... Rf6 {[%clk 0:02:50.5]} 36.
Kd2 {[%clk 0:00:43.8]} 36... Qd7+ {[%clk 0:02:16.3]} 37. Kc3 {[%clk 0:00:41.6]}
37... Qc7 {[%clk 0:01:58.5]} 38. Rb4 {[%clk 0:00:18.7]} 38... Ra6 {[%clk
0:01:54.7]} 39. Kb3 {[%clk 0:00:18.4]} 39... Rxa5 {[%clk 0:01:55.2]} 40. Ra4
{[%clk 0:00:17.1]} 40... Qxb7+ {[%clk 0:01:51]} 41. Bb5 {[%clk 0:00:18.6]} 41...
Qxb5+ {[%clk 0:01:47.5]} 42. Qxb5 {[%clk 0:00:18.1]} 42... Rxb5+ {[%clk
0:01:49.5]} 43. Kc4 {[%clk 0:00:19.8]} 43... Rb7 {[%clk 0:01:49.2]} 44. Ra8
{[%clk 0:00:21.2]} 44... Kh7 {[%clk 0:01:48.9]} 45. Kd5 {[%clk 0:00:22.2]} 45...
Ba7 {[%clk 0:01:25.8]} 46. Kxe4 {[%clk 0:00:19.4]} 46... Re7+ {[%clk 0:01:26.9]}
47. Kd5 {[%clk 0:00:20.1]} 47... Kg6 {[%clk 0:01:27.8]} 48. Kd6 {[%clk
0:00:15.1]} 48... Rb7 {[%clk 0:01:29.7]} 49. Re8 {[%clk 0:00:13.4]} 49... Rb6+
{[%clk 0:01:23]} 50. Kd5 {[%clk 0:00:12.5]} 50... Rf6 {[%clk 0:01:24.2]} 51. Ke4
{[%clk 0:00:13.9]} 51... Rxf2 {[%clk 0:01:25.7]} 52. Re7 {[%clk 0:00:14.4]}
52... Re2 {[%clk 0:01:27.2]} 53. Rxa7 {[%clk 0:00:15.9]} 53... Rg2 {[%clk
0:01:27.7]} 54. Ra6+ {[%clk 0:00:17.7]} 54... Kh5 {[%clk 0:01:28.8]} 55. Kf4
{[%clk 0:00:19.5]} 55... Rb2 {[%clk 0:01:13.3]} 56. Ra5+ {[%clk 0:00:20.1]}
56... Kg6 {[%clk 0:01:14.3]} 57. Ra6+ {[%clk 0:00:21.9]} 57... Kh7 {[%clk
0:01:13.4]} 58. Rd6 {[%clk 0:00:20.6]} 58... g6 {[%clk 0:01:01.9]} 59. g4 {[%clk
0:00:21.1]} 59... Rb4+ {[%clk 0:01:02.4]} 60. Kf3 {[%clk 0:00:22.2]} 60... Kg7
{[%clk 0:01:04.3]} 61. e4 {[%clk 0:00:22.7]} 61... Rb3+ {[%clk 0:01:01.5]} 62.
Kf4 {[%clk 0:00:24]} 62... Rb5 {[%clk 0:01:02.1]} 63. Rd5 {[%clk 0:00:14.8]}
63... Rb6 {[%clk 0:01:00.9]} 64. Re5 {[%clk 0:00:12.9]} 64... Rf6+ {[%clk
0:01:01.7]} 65. Ke3 {[%clk 0:00:12.8]} 65... g5 {[%clk 0:01:02.7]} 66. Re8
{[%clk 0:00:08.5]} 66... Kg6 {[%clk 0:01:02.4]} 67. Re5 {[%clk 0:00:08.3]} 67...
h5 {[%clk 0:01:00.9]} 68. gxh5+ {[%clk 0:00:08.6]} 68... Kxh5 {[%clk 0:01:02.9]}
69. Rd5 {[%clk 0:00:07.5]} 69... Kh4 {[%clk 0:01:04.7]} 70. Re5 {[%clk
0:00:07.3]} 70... g4 {[%clk 0:01:06.3]} 71. Rd5 {[%clk 0:00:04.3]} 71... Kh3
{[%clk 0:01:08.2]} 72. Rd2 {[%clk 0:00:05.9]} 72... Rf3+ {[%clk 0:01:07.2]} 73.
Ke2 {[%clk 0:00:07.2]} 73... Rf4 {[%clk 0:01:05.7]} 74. Rd3+ {[%clk 0:00:08.8]}
74... g3 {[%clk 0:01:04.4]} 75. Rf3 {[%clk 0:00:07.1]} 75... Rxf3 {[%clk
0:01:00.3]} 76. Kxf3 {[%clk 0:00:09.1]} 76... Kh2 {[%clk 0:01:02.1]} 77. e5
{[%clk 0:00:09.9]} 77... g2 {[%clk 0:01:03.7]} 0-1